[Event "Titled Tuesday Blitz May 03 Early 2022"]
[White "Visakh N R"]
[Black "Sokolovsky, Yahli"]
[WhiteFideId "25012223"]
[BlackFideId "2820242"]
[WhiteElo "2448"]
[BlackElo "1770"]
[Result "1/2-1/2"]
[Round "04"]
[TimeControl "180+1"]
[Date "2022.05.03"]
[WhiteClock "0:00:47"]
[BlackClock "0:00:05"]

1. e4 {[%clk 0:03:00]}  g6 {[%clk 0:02:59]} 2. d4 {[%clk 0:03:00]}  Bg7 {[%clk 0:03:00]} 3. Nc3 {[%clk 0:02:53]}  d6 {[%clk 0:03:00]} 4. f4 {[%clk 0:02:52]}  a6 {[%clk 0:02:53]} 5. a4 {[%clk 0:02:50]}  b6 {[%clk 0:02:54]} 6. Nf3 {[%clk 0:02:50]}  Bb7 {[%clk 0:02:54]} 7. Bd3 {[%clk 0:02:50]}  e6 {[%clk 0:02:55]} 8. O-O {[%clk 0:02:50]}  Ne7 {[%clk 0:02:55]} 9. Kh1 {[%clk 0:02:46]}  Nbc6 {[%clk 0:02:51]} 10. Be3 {[%clk 0:02:44]}  Nb4 {[%clk 0:02:30]} 11. Be2 {[%clk 0:02:40]}  O-O {[%clk 0:02:15]} 12. Ne1 {[%clk 0:02:34]}  c5 {[%clk 0:02:08]} 13. Nd3 {[%clk 0:02:34]}  cxd4 {[%clk 0:01:58]} 14. Bxd4 {[%clk 0:02:33]}  Bxd4 {[%clk 0:01:56]} 15. Nxb4 {[%clk 0:02:32]}  Bxc3 {[%clk 0:01:32]} 16. bxc3 {[%clk 0:02:32]}  a5 {[%clk 0:01:28]} 17. Na2 {[%clk 0:02:26]}  Bxe4 {[%clk 0:01:28]} 18. c4 {[%clk 0:02:26]}  Nf5 {[%clk 0:01:15]} 19. Qd2 {[%clk 0:02:23]}  Qh4 {[%clk 0:00:53]} 20. Kg1 {[%clk 0:02:22]}  Bc6 {[%clk 0:00:42]} 21. Nc3 {[%clk 0:02:20]}  Qf6 {[%clk 0:00:42]} 22. Rab1 {[%clk 0:02:15]}  Rab8 {[%clk 0:00:40]} 23. Rfd1 {[%clk 0:02:05]}  Rfd8 {[%clk 0:00:38]} 24. Bd3 {[%clk 0:01:53]}  Qd4+ {[%clk 0:00:35]} 25. Kh1 {[%clk 0:01:52]}  Ne3 {[%clk 0:00:29]} 26. Be4 {[%clk 0:01:53]}  Qxd2 {[%clk 0:00:24]} 27. Rxd2 {[%clk 0:01:52]}  Bxe4 {[%clk 0:00:23]} 28. Nxe4 {[%clk 0:01:53]}  Nxc4 {[%clk 0:00:24]} 29. Rd3 {[%clk 0:01:54]}  d5 {[%clk 0:00:23]} 30. Ng5 {[%clk 0:01:53]}  h6 {[%clk 0:00:23]} 31. Nf3 {[%clk 0:01:53]}  Kf8 {[%clk 0:00:23]} 32. Nd4 {[%clk 0:01:52]}  Rbc8 {[%clk 0:00:24]} 33. g4 {[%clk 0:01:48]}  Ke7 {[%clk 0:00:23]} 34. Re1 {[%clk 0:01:47]}  Kf6 {[%clk 0:00:22]} 35. h4 {[%clk 0:01:47]}  Nd6 {[%clk 0:00:22]} 36. Kg2 {[%clk 0:01:38]}  Rc4 {[%clk 0:00:21]} 37. Rb1 {[%clk 0:01:38]}  Rxa4 {[%clk 0:00:18]} 38. Rxb6 {[%clk 0:01:37]}  Nc4 {[%clk 0:00:16]} 39. g5+ {[%clk 0:01:36]}  hxg5 {[%clk 0:00:16]} 40. hxg5+ {[%clk 0:01:37]}  Kg7 {[%clk 0:00:17]} 41. Rb7 {[%clk 0:01:37]}  Re8 {[%clk 0:00:16]} 42. Ra7 {[%clk 0:01:27]}  Nd6 {[%clk 0:00:16]} 43. c3 {[%clk 0:01:17]}  Nf5 {[%clk 0:00:15]} 44. Nxf5+ {[%clk 0:01:10]}  gxf5 {[%clk 0:00:15]} 45. Rg3 {[%clk 0:01:11]}  Rxf4 {[%clk 0:00:14]} 46. g6 {[%clk 0:01:11]}  Rf8 {[%clk 0:00:09]} 47. gxf7+ {[%clk 0:01:11]}  Kf6 {[%clk 0:00:10]} 48. Rh3 {[%clk 0:01:01]}  Rg4+ {[%clk 0:00:09]} 49. Kf3 {[%clk 0:01:00]}  Rxf7 {[%clk 0:00:09]} 50. Rxa5 {[%clk 0:01:00]}  Rc7 {[%clk 0:00:09]} 51. Ra3 {[%clk 0:01:00]}  Rgc4 {[%clk 0:00:08]} 52. Ke2 {[%clk 0:01:00]}  Re4+ {[%clk 0:00:08]} 53. Kd3 {[%clk 0:01:00]}  Rg7 {[%clk 0:00:09]} 54. Ra6 {[%clk 0:00:56]}  Ke5 {[%clk 0:00:08]} 55. Rh6 {[%clk 0:00:56]}  Rg3+ {[%clk 0:00:08]} 56. Kc2 {[%clk 0:00:56]}  Kf4 {[%clk 0:00:03]} 57. Raxe6 {[%clk 0:00:55]}  Rxe6 {[%clk 0:00:03]} 58. Rxe6 {[%clk 0:00:56]}  Rg8 {[%clk 0:00:03]} 59. Kd3 {[%clk 0:00:56]}  Rc8 {[%clk 0:00:02]} 60. Rd6 {[%clk 0:00:55]}  Ke5 {[%clk 0:00:02]} 61. Rh6 {[%clk 0:00:54]}  Rg8 {[%clk 0:00:03]} 62. Rh7 {[%clk 0:00:53]}  Rg3+ {[%clk 0:00:03]} 63. Kd2 {[%clk 0:00:53]}  f4 {[%clk 0:00:04]} 64. Re7+ {[%clk 0:00:54]}  Kf5 {[%clk 0:00:04]} 65. Rf7+ {[%clk 0:00:54]}  Ke4 {[%clk 0:00:05]} 66. Re7+ {[%clk 0:00:54]}  Kf3 {[%clk 0:00:06]} 67. Re5 {[%clk 0:00:55]}  Kg2 {[%clk 0:00:06]} 68. Rxd5 {[%clk 0:00:50]}  f3 {[%clk 0:00:06]} 69. Rf5 {[%clk 0:00:50]}  f2 {[%clk 0:00:07]} 70. Ke2 {[%clk 0:00:50]}  Rxc3 {[%clk 0:00:04]} 71. Rg5+ {[%clk 0:00:48]}  Kh3 {[%clk 0:00:04]} 72. Kxf2 {[%clk 0:00:48]}  Kh4 {[%clk 0:00:05]} 73. Re5 {[%clk 0:00:47]}  Rc2+ {[%clk 0:00:05]} 74. Re2 {[%clk 0:00:46]}  Rxe2+ {[%clk 0:00:05]} 75. Kxe2 {[%clk 0:00:47]} 1/2-1/2


[Site "https://www.chess.com"]

[Event "Titled Tuesday Blitz May 03 Early 2022"]
[White "Vokhidov, Shamsiddin"]
[Black "Vokarev, Sergey"]
[WhiteFideId "14204223"]
[BlackFideId "4119711"]
[WhiteElo "2611"]
[BlackElo "2343"]
[Result "1-0"]
[Round "04"]
[TimeControl "180+1"]
[Date "2022.05.03"]
[WhiteClock "0:01:08"]
[BlackClock "0:00:48"]

1. e4 {[%clk 0:03:00]}  c5 {[%clk 0:02:59]} 2. Nf3 {[%clk 0:03:01]}  Nc6 {[%clk 0:02:59]} 3. Bb5 {[%clk 0:03:01]}  g6 {[%clk 0:02:58]} 4. Bxc6 {[%clk 0:03:01]}  bxc6 {[%clk 0:02:59]} 5. O-O {[%clk 0:03:01]}  Bg7 {[%clk 0:03:00]} 6. Re1 {[%clk 0:03:02]}  Nh6 {[%clk 0:02:59]} 7. c3 {[%clk 0:03:02]}  O-O {[%clk 0:02:59]} 8. d4 {[%clk 0:03:00]}  cxd4 {[%clk 0:02:58]} 9. cxd4 {[%clk 0:03:01]}  d5 {[%clk 0:02:59]} 10. exd5 {[%clk 0:03:02]}  cxd5 {[%clk 0:02:57]} 11. h3 {[%clk 0:03:03]}  Nf5 {[%clk 0:02:56]} 12. Nc3 {[%clk 0:03:00]}  e6 {[%clk 0:02:53]} 13. Bf4 {[%clk 0:02:53]}  Bd7 {[%clk 0:02:30]} 14. Qd2 {[%clk 0:02:45]}  Rc8 {[%clk 0:02:23]} 15. Rac1 {[%clk 0:02:39]}  Re8 {[%clk 0:02:18]} 16. b3 {[%clk 0:02:24]}  Qa5 {[%clk 0:02:13]} 17. Ne5 {[%clk 0:02:20]}  Bb5 {[%clk 0:02:05]} 18. g4 {[%clk 0:02:13]}  Ne7 {[%clk 0:02:00]} 19. Nxd5 {[%clk 0:02:08]}  Qxd2 {[%clk 0:01:36]} 20. Nxe7+ {[%clk 0:02:08]}  Kf8 {[%clk 0:01:36]} 21. Bxd2 {[%clk 0:02:02]}  Kxe7 {[%clk 0:01:26]} 22. Bb4+ {[%clk 0:01:53]}  Kf6 {[%clk 0:01:26]} 23. a4 {[%clk 0:01:51]}  Ba6 {[%clk 0:01:18]} 24. Nd7+ {[%clk 0:01:47]}  Kg5 {[%clk 0:01:18]} 25. Bd2+ {[%clk 0:01:47]}  Kh4 {[%clk 0:01:18]} 26. Kh2 {[%clk 0:01:41]}  Bxd4 {[%clk 0:01:05]} 27. Ne5 {[%clk 0:01:18]}  Bb7 {[%clk 0:00:57]} 28. Nxf7 {[%clk 0:01:12]}  Bf6 {[%clk 0:00:48]} 29. Bf4 {[%clk 0:01:08]} 1-0


[Site "https://www.chess.com"]

[Event "Titled Tuesday Blitz May 03 Early 2022"]
[White "Vusatiuk, Vladimir"]
[Black "Silvestre, Christian"]
[WhiteFideId "14118610"]
[BlackFideId "30956269"]
[WhiteElo "2157"]
[BlackElo "2357"]
[Result "1-0"]
[Round "04"]
[TimeControl "180+1"]
[Date "2022.05.03"]
[WhiteClock "0:00:46"]
[BlackClock "0:00:16"]

1. d4 {[%clk 0:03:00]}  Nf6 {[%clk 0:02:54]} 2. c4 {[%clk 0:03:00]}  g6 {[%clk 0:02:54]} 3. h4 {[%clk 0:03:00]}  Bg7 {[%clk 0:02:50]} 4. Nc3 {[%clk 0:03:00]}  d6 {[%clk 0:02:48]} 5. e4 {[%clk 0:03:00]}  h5 {[%clk 0:02:37]} 6. Be2 {[%clk 0:02:50]}  O-O {[%clk 0:02:36]} 7. Nf3 {[%clk 0:02:51]}  e5 {[%clk 0:02:35]} 8. Bg5 {[%clk 0:02:35]}  Nc6 {[%clk 0:02:28]} 9. d5 {[%clk 0:02:26]}  Ne7 {[%clk 0:02:23]} 10. Qd2 {[%clk 0:02:25]}  Re8 {[%clk 0:02:18]} 11. O-O {[%clk 0:02:15]}  Bg4 {[%clk 0:02:11]} 12. b4 {[%clk 0:02:14]}  a5 {[%clk 0:02:09]} 13. a3 {[%clk 0:02:13]}  axb4 {[%clk 0:02:05]} 14. axb4 {[%clk 0:02:14]}  Qd7 {[%clk 0:02:05]} 15. c5 {[%clk 0:02:13]}  Nh7 {[%clk 0:01:58]} 16. Be3 {[%clk 0:02:11]}  f5 {[%clk 0:01:55]} 17. cxd6 {[%clk 0:02:08]}  cxd6 {[%clk 0:01:52]} 18. Bb5 {[%clk 0:02:01]}  Qc8 {[%clk 0:01:47]} 19. Rxa8 {[%clk 0:01:56]}  Qxa8 {[%clk 0:01:45]} 20. Bxe8 {[%clk 0:01:57]}  Qxe8 {[%clk 0:01:45]} 21. Ng5 {[%clk 0:01:43]}  f4 {[%clk 0:01:38]} 22. Bb6 {[%clk 0:01:39]}  Nxg5 {[%clk 0:01:36]} 23. hxg5 {[%clk 0:01:40]}  f3 {[%clk 0:01:35]} 24. gxf3 {[%clk 0:01:20]}  Bxf3 {[%clk 0:01:17]} 25. Qe3 {[%clk 0:01:20]}  Qf7 {[%clk 0:00:56]} 26. Ra1 {[%clk 0:01:15]}  Bf8 {[%clk 0:00:52]} 27. Bd8 {[%clk 0:01:00]}  h4 {[%clk 0:00:50]} 28. Ra8 {[%clk 0:00:48]}  h3 {[%clk 0:00:49]} 29. Bxe7 {[%clk 0:00:46]}  Qxe7 {[%clk 0:00:17]} 30. Qxf3 {[%clk 0:00:46]}  Qxg5+ {[%clk 0:00:16]} 31. Kh2 {[%clk 0:00:46]} 1-0


[Site "https://www.chess.com"]

[Event "Titled Tuesday Blitz May 03 Early 2022"]
[White "Wagh Suyog"]
[Black "Richter, Nils"]
[WhiteFideId "25071688"]
[BlackFideId "12990809"]
[WhiteElo "2181"]
[BlackElo "2243"]
[Result "1/2-1/2"]
[Round "04"]
[TimeControl "180+1"]
[Date "2022.05.03"]
[WhiteClock "0:00:14"]
[BlackClock "0:00:36"]

1. e4 {[%clk 0:03:00]}  e6 {[%clk 0:02:58]} 2. d4 {[%clk 0:03:00]}  d5 {[%clk 0:02:59]} 3. Nd2 {[%clk 0:03:00]}  c5 {[%clk 0:02:58]} 4. exd5 {[%clk 0:02:58]}  Qxd5 {[%clk 0:02:59]} 5. Ngf3 {[%clk 0:02:58]}  Nf6 {[%clk 0:02:59]} 6. Bc4 {[%clk 0:02:55]}  Qd6 {[%clk 0:02:59]} 7. O-O {[%clk 0:02:55]}  cxd4 {[%clk 0:02:59]} 8. Nb3 {[%clk 0:02:54]}  Nc6 {[%clk 0:03:00]} 9. Nbxd4 {[%clk 0:02:52]}  Nxd4 {[%clk 0:02:59]} 10. Nxd4 {[%clk 0:02:52]}  Be7 {[%clk 0:02:59]} 11. c3 {[%clk 0:02:52]}  O-O {[%clk 0:02:59]} 12. Qf3 {[%clk 0:02:52]}  Qc7 {[%clk 0:02:58]} 13. Bd3 {[%clk 0:02:49]}  Bd7 {[%clk 0:02:55]} 14. Re1 {[%clk 0:02:48]}  Bc6 {[%clk 0:02:55]} 15. Qh3 {[%clk 0:02:48]}  Rfd8 {[%clk 0:02:44]} 16. Bg5 {[%clk 0:02:31]}  g6 {[%clk 0:02:41]} 17. Qh4 {[%clk 0:02:28]}  Nd5 {[%clk 0:02:38]} 18. Bxe7 {[%clk 0:01:53]}  Qxe7 {[%clk 0:02:37]} 19. Qg3 {[%clk 0:01:53]}  Qf6 {[%clk 0:02:33]} 20. Rad1 {[%clk 0:01:52]}  Qf4 {[%clk 0:02:29]} 21. Be4 {[%clk 0:01:50]}  Qxg3 {[%clk 0:02:28]} 22. hxg3 {[%clk 0:01:50]}  Rac8 {[%clk 0:02:26]} 23. Nxc6 {[%clk 0:01:42]}  bxc6 {[%clk 0:02:26]} 24. Rd4 {[%clk 0:01:41]}  Nb6 {[%clk 0:02:17]} 25. Rxd8+ {[%clk 0:01:37]}  Rxd8 {[%clk 0:02:18]} 26. Bxc6 {[%clk 0:01:38]}  Rd2 {[%clk 0:02:18]} 27. Rb1 {[%clk 0:01:38]}  Nc4 {[%clk 0:02:15]} 28. b3 {[%clk 0:01:25]}  Ne5 {[%clk 0:02:15]} 29. Ba4 {[%clk 0:01:25]}  Rxa2 {[%clk 0:02:14]} 30. c4 {[%clk 0:01:23]}  Nd3 {[%clk 0:02:05]} 31. f3 {[%clk 0:01:11]}  Nc5 {[%clk 0:02:02]} 32. Bb5 {[%clk 0:01:08]}  Rc2 {[%clk 0:01:38]} 33. b4 {[%clk 0:01:07]}  Nd3 {[%clk 0:01:27]} 34. c5 {[%clk 0:01:04]}  Nxb4 {[%clk 0:01:12]} 35. Rxb4 {[%clk 0:01:02]}  Rxc5 {[%clk 0:01:12]} 36. Bf1 {[%clk 0:01:02]}  a5 {[%clk 0:01:12]} 37. Rb5 {[%clk 0:00:39]}  Rxb5 {[%clk 0:01:07]} 38. Bxb5 {[%clk 0:00:40]}  Kg7 {[%clk 0:01:02]} 39. Kf2 {[%clk 0:00:41]}  f5 {[%clk 0:01:01]} 40. f4 {[%clk 0:00:34]}  Kf6 {[%clk 0:01:00]} 41. Ke3 {[%clk 0:00:32]}  e5 {[%clk 0:01:00]} 42. Ba4 {[%clk 0:00:32]}  h6 {[%clk 0:00:57]} 43. Bb3 {[%clk 0:00:30]}  g5 {[%clk 0:00:56]} 44. Ba2 {[%clk 0:00:29]}  h5 {[%clk 0:00:46]} 45. Kf3 {[%clk 0:00:16]}  a4 {[%clk 0:00:45]} 46. Bc4 {[%clk 0:00:16]}  a3 {[%clk 0:00:45]} 47. Ba2 {[%clk 0:00:16]}  h4 {[%clk 0:00:39]} 48. fxe5+ {[%clk 0:00:09]}  Kxe5 {[%clk 0:00:39]} 49. gxh4 {[%clk 0:00:10]}  gxh4 {[%clk 0:00:39]} 50. Ke3 {[%clk 0:00:10]}  f4+ {[%clk 0:00:33]} 51. Kf3 {[%clk 0:00:10]}  h3 {[%clk 0:00:34]} 52. gxh3 {[%clk 0:00:10]}  Kf6 {[%clk 0:00:33]} 53. Kxf4 {[%clk 0:00:10]}  Kg7 {[%clk 0:00:34]} 54. Kg5 {[%clk 0:00:10]}  Kh8 {[%clk 0:00:34]} 55. h4 {[%clk 0:00:11]}  Kg7 {[%clk 0:00:34]} 56. h5 {[%clk 0:00:12]}  Kh8 {[%clk 0:00:35]} 57. h6 {[%clk 0:00:13]}  Kh7 {[%clk 0:00:35]} 58. Kh5 {[%clk 0:00:13]}  Kh8 {[%clk 0:00:36]} 59. Kg6 {[%clk 0:00:14]} 1/2-1/2


[Site "https://www.chess.com"]

[Event "Titled Tuesday Blitz May 03 Early 2022"]
[White "Wagner, Dennis"]
[Black "Wagner, Dinara"]
[WhiteFideId "24650684"]
[BlackFideId "24157570"]
[WhiteElo "2355"]
[BlackElo "2216"]
[Result "1/2-1/2"]
[Round "04"]
[TimeControl "180+1"]
[Date "2022.05.03"]
[WhiteClock "0:00:11"]
[BlackClock "0:00:06"]

1. d4 {[%clk 0:03:00]}  Nf6 {[%clk 0:03:00]} 2. Nf3 {[%clk 0:02:57]}  d5 {[%clk 0:02:59]} 3. c4 {[%clk 0:02:52]}  e6 {[%clk 0:02:59]} 4. Bg5 {[%clk 0:02:52]}  dxc4 {[%clk 0:02:46]} 5. e4 {[%clk 0:02:44]}  Bb4+ {[%clk 0:02:45]} 6. Nbd2 {[%clk 0:02:39]}  h6 {[%clk 0:02:42]} 7. Bxf6 {[%clk 0:02:35]}  Qxf6 {[%clk 0:02:42]} 8. Bxc4 {[%clk 0:02:29]}  c5 {[%clk 0:02:42]} 9. O-O {[%clk 0:02:25]}  cxd4 {[%clk 0:02:41]} 10. e5 {[%clk 0:02:25]}  Qd8 {[%clk 0:02:42]} 11. Ne4 {[%clk 0:02:26]}  Nc6 {[%clk 0:02:41]} 12. Qe2 {[%clk 0:02:22]}  a6 {[%clk 0:02:39]} 13. Rac1 {[%clk 0:02:16]}  b5 {[%clk 0:02:38]} 14. Bd3 {[%clk 0:02:12]}  Bb7 {[%clk 0:02:38]} 15. a3 {[%clk 0:02:08]}  Be7 {[%clk 0:02:38]} 16. Nc5 {[%clk 0:02:09]}  Bxc5 {[%clk 0:02:23]} 17. Rxc5 {[%clk 0:02:10]}  Ne7 {[%clk 0:02:24]} 18. Rfc1 {[%clk 0:02:06]}  O-O {[%clk 0:02:22]} 19. Be4 {[%clk 0:01:57]}  Bxe4 {[%clk 0:02:02]} 20. Qxe4 {[%clk 0:01:58]}  Nf5 {[%clk 0:02:02]} 21. g4 {[%clk 0:01:51]}  Nh4 {[%clk 0:02:02]} 22. Nxh4 {[%clk 0:01:32]}  Qxh4 {[%clk 0:02:01]} 23. Qxd4 {[%clk 0:01:32]}  Rfd8 {[%clk 0:01:56]} 24. Qf4 {[%clk 0:01:32]}  h5 {[%clk 0:01:47]} 25. Re1 {[%clk 0:00:40]}  Qxg4+ {[%clk 0:01:37]} 26. Qxg4 {[%clk 0:00:40]}  hxg4 {[%clk 0:01:38]} 27. Re4 {[%clk 0:00:40]}  Rd2 {[%clk 0:01:37]} 28. b4 {[%clk 0:00:36]}  Rad8 {[%clk 0:01:37]} 29. Rxg4 {[%clk 0:00:36]}  Ra2 {[%clk 0:01:37]} 30. Rc7 {[%clk 0:00:33]}  Rxa3 {[%clk 0:01:21]} 31. Rf4 {[%clk 0:00:33]}  Rf8 {[%clk 0:01:21]} 32. h4 {[%clk 0:00:32]}  Rb3 {[%clk 0:01:18]} 33. Ra7 {[%clk 0:00:31]}  Kh7 {[%clk 0:01:15]} 34. Kg2 {[%clk 0:00:28]}  Kg6 {[%clk 0:01:16]} 35. Rxa6 {[%clk 0:00:26]}  Rd8 {[%clk 0:00:59]} 36. Ra7 {[%clk 0:00:26]}  f6 {[%clk 0:00:58]} 37. h5+ {[%clk 0:00:16]}  Kg5 {[%clk 0:00:51]} 38. Re4 {[%clk 0:00:10]}  f5 {[%clk 0:00:51]} 39. Re1 {[%clk 0:00:08]}  Rxb4 {[%clk 0:00:11]} 40. Rxg7+ {[%clk 0:00:09]}  Kf4 {[%clk 0:00:11]} 41. h6 {[%clk 0:00:08]}  Rh8 {[%clk 0:00:11]} 42. h7 {[%clk 0:00:08]}  Ra4 {[%clk 0:00:10]} 43. Rh1 {[%clk 0:00:08]}  Raa8 {[%clk 0:00:10]} 44. Rh6 {[%clk 0:00:05]}  Kxe5 {[%clk 0:00:10]} 45. Re7 {[%clk 0:00:06]}  Kf4 {[%clk 0:00:06]} 46. Rhxe6 {[%clk 0:00:04]}  Rab8 {[%clk 0:00:05]} 47. Rc6 {[%clk 0:00:03]}  b4 {[%clk 0:00:05]} 48. Rc1 {[%clk 0:00:03]}  b3 {[%clk 0:00:05]} 49. Rb1 {[%clk 0:00:04]}  b2 {[%clk 0:00:06]} 50. Re2 {[%clk 0:00:04]}  Kg5 {[%clk 0:00:06]} 51. Rbxb2 {[%clk 0:00:04]}  Rxb2 {[%clk 0:00:06]} 52. Rxb2 {[%clk 0:00:05]}  Rxh7 {[%clk 0:00:07]} 53. Rb3 {[%clk 0:00:06]}  Rd7 {[%clk 0:00:07]} 54. Kf3 {[%clk 0:00:06]}  Rd4 {[%clk 0:00:06]} 55. Rc3 {[%clk 0:00:07]}  Ra4 {[%clk 0:00:07]} 56. Kg2 {[%clk 0:00:07]}  Rb4 {[%clk 0:00:07]} 57. Rg3+ {[%clk 0:00:08]}  Kf6 {[%clk 0:00:07]} 58. Rg8 {[%clk 0:00:07]}  Ra4 {[%clk 0:00:07]} 59. Rf8+ {[%clk 0:00:08]}  Kg6 {[%clk 0:00:07]} 60. Rb8 {[%clk 0:00:08]}  Rc4 {[%clk 0:00:07]} 61. Rb6+ {[%clk 0:00:08]}  Kg5 {[%clk 0:00:07]} 62. Kg3 {[%clk 0:00:09]}  Ra4 {[%clk 0:00:04]} 63. Kf3 {[%clk 0:00:09]}  Rc4 {[%clk 0:00:05]} 64. Kg3 {[%clk 0:00:10]}  Ra4 {[%clk 0:00:05]} 65. Kf3 {[%clk 0:00:10]}  Rc4 {[%clk 0:00:06]} 66. Kg3 {[%clk 0:00:11]} 1/2-1/2


[Site "https://www.chess.com"]

[Event "Titled Tuesday Blitz May 03 Early 2022"]
[White "Williams, Simon K"]
[Black "Demchenko, Anton"]
[WhiteFideId "404454"]
[BlackFideId "4160258"]
[WhiteElo "2468"]
[BlackElo "2539"]
[Result "0-1"]
[Round "04"]
[TimeControl "180+1"]
[Date "2022.05.03"]
[WhiteClock "0:00:03"]
[BlackClock "0:00:04"]

1. d4 {[%clk 0:02:51]}  Nf6 {[%clk 0:02:02]} 2. Bg5 {[%clk 0:02:47]}  g6 {[%clk 0:02:01]} 3. Bxf6 {[%clk 0:02:46]}  exf6 {[%clk 0:02:02]} 4. e3 {[%clk 0:02:45]}  d5 {[%clk 0:02:02]} 5. Ne2 {[%clk 0:02:45]}  Bd6 {[%clk 0:01:59]} 6. c4 {[%clk 0:02:40]}  dxc4 {[%clk 0:01:56]} 7. Nec3 {[%clk 0:02:33]}  Be6 {[%clk 0:01:52]} 8. Nd2 {[%clk 0:02:28]}  O-O {[%clk 0:01:48]} 9. Bxc4 {[%clk 0:02:27]}  Qe7 {[%clk 0:01:38]} 10. O-O {[%clk 0:02:25]}  c6 {[%clk 0:01:32]} 11. e4 {[%clk 0:02:20]}  Rd8 {[%clk 0:01:25]} 12. Qb3 {[%clk 0:02:16]}  Na6 {[%clk 0:01:20]} 13. Rfe1 {[%clk 0:02:07]}  Bf4 {[%clk 0:01:10]} 14. Nf3 {[%clk 0:01:50]}  Bg4 {[%clk 0:01:07]} 15. Ne2 {[%clk 0:01:46]}  Bc7 {[%clk 0:01:02]} 16. h3 {[%clk 0:01:41]}  Bxf3 {[%clk 0:00:55]} 17. Qxf3 {[%clk 0:01:40]}  Nb4 {[%clk 0:00:55]} 18. Qc3 {[%clk 0:01:31]}  c5 {[%clk 0:00:50]} 19. dxc5 {[%clk 0:01:21]}  a5 {[%clk 0:00:51]} 20. a3 {[%clk 0:01:00]}  Be5 {[%clk 0:00:51]} 21. Qb3 {[%clk 0:00:59]}  Na6 {[%clk 0:00:47]} 22. Bxa6 {[%clk 0:00:38]}  bxa6 {[%clk 0:00:47]} 23. Rac1 {[%clk 0:00:33]}  Rab8 {[%clk 0:00:45]} 24. Qc4 {[%clk 0:00:31]}  Bxb2 {[%clk 0:00:42]} 25. Rc2 {[%clk 0:00:30]}  Bxa3 {[%clk 0:00:43]} 26. c6 {[%clk 0:00:30]}  Bb4 {[%clk 0:00:29]} 27. Rec1 {[%clk 0:00:27]}  Rbc8 {[%clk 0:00:26]} 28. Nf4 {[%clk 0:00:26]}  Qe5 {[%clk 0:00:17]} 29. Nd5 {[%clk 0:00:26]}  f5 {[%clk 0:00:16]} 30. c7 {[%clk 0:00:26]}  Rd6 {[%clk 0:00:13]} 31. f3 {[%clk 0:00:21]}  fxe4 {[%clk 0:00:12]} 32. fxe4 {[%clk 0:00:22]}  Re6 {[%clk 0:00:10]} 33. Rf1 {[%clk 0:00:13]}  Bd6 {[%clk 0:00:10]} 34. Nf4 {[%clk 0:00:11]}  Rf6 {[%clk 0:00:09]} 35. g3 {[%clk 0:00:03]}  Rxc7 {[%clk 0:00:08]} 36. Qd3 {[%clk 0:00:03]}  Rxc2 {[%clk 0:00:07]} 37. Qxc2 {[%clk 0:00:03]}  Qd4+ {[%clk 0:00:08]} 38. Kg2 {[%clk 0:00:03]}  Bxf4 {[%clk 0:00:07]} 39. gxf4 {[%clk 0:00:04]}  Re6 {[%clk 0:00:07]} 40. Re1 {[%clk 0:00:04]}  a4 {[%clk 0:00:07]} 41. Re2 {[%clk 0:00:03]}  a3 {[%clk 0:00:07]} 42. h4 {[%clk 0:00:02]}  h5 {[%clk 0:00:06]} 43. e5 {[%clk 0:00:02]}  Qd5+ {[%clk 0:00:06]} 44. Qe4 {[%clk 0:00:02]}  Qxe4+ {[%clk 0:00:03]} 45. Rxe4 {[%clk 0:00:03]}  Rb6 {[%clk 0:00:04]} 46. Ra4 {[%clk 0:00:04]}  Rb2+ {[%clk 0:00:04]} 47. Kf3 {[%clk 0:00:03]}  Rb3+ {[%clk 0:00:04]} 48. Ke4 {[%clk 0:00:03]}  Rh3 {[%clk 0:00:04]} 49. Rxa6 {[%clk 0:00:04]}  Rxh4 {[%clk 0:00:04]} 50. Rxa3 {[%clk 0:00:04]}  g5 {[%clk 0:00:05]} 51. Ra8+ {[%clk 0:00:04]}  Kg7 {[%clk 0:00:05]} 52. Kf5 {[%clk 0:00:04]}  gxf4 {[%clk 0:00:05]} 53. Ra7 {[%clk 0:00:05]}  Kf8 {[%clk 0:00:02]} 54. Kf6 {[%clk 0:00:04]}  Kg8 {[%clk 0:00:02]} 55. Ra8+ {[%clk 0:00:04]}  Kh7 {[%clk 0:00:02]} 56. Kxf7 {[%clk 0:00:05]}  f3 {[%clk 0:00:03]} 57. Ra3 {[%clk 0:00:04]}  Rf4+ {[%clk 0:00:03]} 58. Ke6 {[%clk 0:00:03]}  f2 {[%clk 0:00:04]} 0-1


[Site "https://www.chess.com"]

[Event "Titled Tuesday Blitz May 03 Early 2022"]
[White "Yang, Kaiqi"]
[Black "Navalgund, Niranjan"]
[WhiteFideId "8604398"]
[BlackFideId "5030854"]
[WhiteElo "2373"]
[BlackElo "2290"]
[Result "0-1"]
[Round "04"]
[TimeControl "180+1"]
[Date "2022.05.03"]
[WhiteClock "0:00:10"]
[BlackClock "0:00:06"]

1. d4 {[%clk 0:03:00]}  Nf6 {[%clk 0:02:57]} 2. c4 {[%clk 0:03:00]}  e6 {[%clk 0:02:56]} 3. Nc3 {[%clk 0:03:00]}  Bb4 {[%clk 0:02:56]} 4. e3 {[%clk 0:02:59]}  c5 {[%clk 0:02:53]} 5. Ne2 {[%clk 0:02:57]}  O-O {[%clk 0:02:49]} 6. a3 {[%clk 0:02:58]}  cxd4 {[%clk 0:02:38]} 7. axb4 {[%clk 0:02:30]}  dxc3 {[%clk 0:02:38]} 8. bxc3 {[%clk 0:02:30]}  b6 {[%clk 0:02:38]} 9. Ng3 {[%clk 0:02:27]}  Bb7 {[%clk 0:02:38]} 10. Be2 {[%clk 0:02:25]}  Bxg2 {[%clk 0:02:37]} 11. Rg1 {[%clk 0:02:25]}  Bb7 {[%clk 0:02:37]} 12. b5 {[%clk 0:02:10]}  d5 {[%clk 0:02:14]} 13. Ba3 {[%clk 0:02:04]}  Re8 {[%clk 0:02:13]} 14. cxd5 {[%clk 0:02:03]}  Qxd5 {[%clk 0:02:14]} 15. Qc2 {[%clk 0:01:56]}  Nbd7 {[%clk 0:02:11]} 16. c4 {[%clk 0:01:55]}  Qe5 {[%clk 0:02:02]} 17. Bb2 {[%clk 0:01:54]}  Qc5 {[%clk 0:02:02]} 18. Qc3 {[%clk 0:01:30]}  e5 {[%clk 0:01:24]} 19. Nf5 {[%clk 0:01:20]}  g6 {[%clk 0:01:23]} 20. Ba3 {[%clk 0:01:20]}  Qc7 {[%clk 0:01:20]} 21. Bd6 {[%clk 0:00:53]}  Qd8 {[%clk 0:00:18]} 22. Qb4 {[%clk 0:00:53]}  Re6 {[%clk 0:00:16]} 23. Rd1 {[%clk 0:00:51]}  Qe8 {[%clk 0:00:15]} 24. h4 {[%clk 0:00:32]}  Kh8 {[%clk 0:00:15]} 25. Nh6 {[%clk 0:00:30]}  Ne4 {[%clk 0:00:15]} 26. Bg4 {[%clk 0:00:28]}  f5 {[%clk 0:00:14]} 27. Bh3 {[%clk 0:00:18]}  Rxd6 {[%clk 0:00:13]} 28. Rxd6 {[%clk 0:00:17]}  Nxd6 {[%clk 0:00:13]} 29. Qxd6 {[%clk 0:00:17]}  Rc8 {[%clk 0:00:10]} 30. h5 {[%clk 0:00:15]}  Qf8 {[%clk 0:00:06]} 31. Qxd7 {[%clk 0:00:13]}  Qb4+ {[%clk 0:00:06]} 32. Kf1 {[%clk 0:00:13]}  Qxc4+ {[%clk 0:00:06]} 33. Ke1 {[%clk 0:00:11]}  Qb4+ {[%clk 0:00:06]} 34. Qd2 {[%clk 0:00:11]}  Rc1+ {[%clk 0:00:05]} 35. Ke2 {[%clk 0:00:11]}  Qc4+ {[%clk 0:00:05]} 36. Qd3 {[%clk 0:00:10]}  Rc2+ {[%clk 0:00:06]} 0-1


[Site "https://www.chess.com"]